bitfinex/quotes_BTCUSD_20250922
["timestamp","ask_amount","ask_price","bid_price","bid_amount"]
[1758558213457,2.68649595,112940.0,112930.0,0.00047008]
[1758558213903,2.68649634,112940.0,112930.0,0.00047008]
[1758558214158,2.67820518,112940.0,112930.0,0.00047008]
[1758558214357,2.66162246,112940.0,112930.0,0.00047008]
[1758558214652,2.68650653,112940.0,112930.0,0.00047008]
[1758558215803,2.68650653,112940.0,112930.0,1e-08]
[1758558215804,3.77780718,112940.0,112930.0,1e-08]
[1758558216038,3.87104718,112940.0,112930.0,1e-08]
[1758558216269,3.87727088,112940.0,112930.0,1e-08]
[1758558216497,3.99515372,112940.0,112930.0,1e-08]
[1758558216719,3.99515372,112940.0,112900.0,0.0002]
[1758558216720,1.48871861,112910.0,112900.0,0.0002]
[1758558216926,3.23609705,112910.0,112900.0,0.00034083]
[1758558217142,3.14930205,112910.0,112900.0,0.00034083]
[1758558217961,3.17594138,112910.0,112900.0,0.00034083]
[1758558218395,1.87394425,112910.0,112900.0,0.00034083]
[1758558218650,1.86406525,112910.0,112900.0,0.02847083]
[1758558218857,1.48622525,112910.0,112900.0,0.02847083]
[1758558219061,1.86406525,112910.0,112900.0,0.02847083]
[1758558219673,1.30887325,112910.0,112900.0,0.02847083]
[1758558219878,1.68687325,112910.0,112900.0,0.02847083]
[1758558220079,1.68902325,112910.0,112900.0,0.02847083]
[1758558220667,1.46316108,112910.0,112900.0,0.02847083]
[1758558221011,1.46316108,112910.0,112900.0,0.02538083]
[1758558222464,1.04129899,112910.0,112900.0,0.02538083]
[1758558222662,1.46637649,112910.0,112900.0,0.02538083]
[1758558222863,1.46314649,112910.0,112900.0,0.02538083]
[1758558223041,1.46314649,112910.0,112900.0,0.02847083]
[1758558224110,1.46314649,112910.0,112900.0,0.02538083]
[1758558224886,1.46637649,112910.0,112900.0,0.02538083]
[1758558225088,1.46637649,112910.0,112900.0,0.00034083]
[1758558225306,3.12353558,112910.0,112900.0,0.00034083]
[1758558225518,3.21027759,112910.0,112900.0,0.00034083]
[1758558225765,3.18936817,112910.0,112900.0,0.00034083]
[1758558226350,3.21027759,112910.0,112900.0,0.00034083]
[1758558226550,3.18936817,112910.0,112900.0,0.00034083]
[1758558226770,3.19236817,112910.0,112900.0,0.00034083]
[1758558227572,2.72567117,112910.0,112900.0,0.00034083]
[1758558227974,2.32123317,112910.0,112900.0,0.00034083]
[1758558228229,1.53497908,112910.0,112900.0,0.00231083]
[1758558228452,1.73761008,112910.0,112900.0,0.02538083]
[1758558228620,1.66067908,112910.0,112900.0,0.02538083]
[1758558228960,1.53493908,112910.0,112900.0,0.02538083]
[1758558229687,1.53816908,112910.0,112900.0,0.00034083]
[1758558229865,1.67174908,112910.0,112900.0,0.00034083]
[1758558230571,2.09361117,112910.0,112900.0,0.00034083]
[1758558231940,1.71565117,112910.0,112900.0,0.00034083]
[1758558232272,2.09365117,112910.0,112900.0,0.00034083]
[1758558232425,1.99777117,112910.0,112900.0,0.00034083]
[1758558232613,2.09357117,112910.0,112900.0,0.00034083]
[1758558235728,2.09390185,112910.0,112900.0,0.00034083]
[1758558237796,1.71598185,112910.0,112900.0,0.00034083]
[1758558238218,2.09354185,112910.0,112900.0,0.00034083]
[1758558238987,1.71598185,112910.0,112900.0,0.00034083]
[1758558239193,1.99770185,112910.0,112900.0,0.00034083]
[1758558239403,2.06973185,112910.0,112900.0,0.00034083]
[1758558239653,1.97393185,112910.0,112900.0,0.02548083]
[1758558239882,2.06973185,112910.0,112900.0,0.02548083]
[1758558240074,2.06973185,112910.0,112900.0,0.00034083]
[1758558240279,2.09423185,112910.0,112900.0,0.00034083]
[1758558240843,1.71671185,112910.0,112900.0,0.00034083]
[1758558241345,2.09415185,112910.0,112900.0,0.00034083]
[1758558242637,1.82044523,112910.0,112900.0,0.02548083]
[1758558242837,2.19453523,112910.0,112900.0,0.02548083]
[1758558243045,1.82032523,112910.0,112900.0,0.02548083]
[1758558243279,1.70740523,112910.0,112900.0,0.00250083]
[1758558243482,1.69260656,112910.0,112900.0,0.02842083]
[1758558243684,2.01674264,112910.0,112900.0,0.02842083]
[1758558244634,2.01674556,112910.0,112900.0,0.02842083]
[1758558245890,1.63942556,112910.0,112900.0,0.02842083]
[1758558246096,1.93143589,112910.0,112900.0,0.02842083]
[1758558248347,1.23005981,112910.0,112900.0,0.02842083]
[1758558248549,0.89005981,112910.0,112900.0,0.02842083]
[1758558248755,1.17145981,112910.0,112900.0,0.02842083]
[1758558248985,1.51145981,112910.0,112900.0,0.02842083]
[1758558249616,1.5052507,112910.0,112900.0,0.02842083]
[1758558249760,1.5114776,112910.0,112900.0,0.02842083]
[1758558250282,1.4908853,112910.0,112900.0,0.02842083]
[1758558250475,1.4878853,112910.0,112900.0,0.02942083]
[1758558250679,0.99025221,112910.0,112900.0,0.02942083]
[1758558250883,0.99125221,112910.0,112900.0,0.02942083]
[1758558251087,1.26646531,112910.0,112900.0,0.02942083]
[1758558251745,0.82621155,112910.0,112900.0,0.02942083]
[1758558251935,0.97673062,112910.0,112900.0,0.04713562]
[1758558252129,1.25817062,112910.0,112900.0,0.04713562]
[1758558252898,0.7995984,112910.0,112900.0,0.13240529]
[1758558253311,0.97673062,112910.0,112900.0,0.13240529]
[1758558253509,0.7995984,112910.0,112900.0,0.13240529]
[1758558253824,0.97673062,112910.0,112900.0,0.1146905]
[1758558254739,0.7995984,112910.0,112900.0,0.1146905]
[1758558254893,0.7995984,112910.0,112900.0,0.13089913]
[1758558255105,0.97673062,112910.0,112900.0,0.1146905]
[1758558255309,0.7995984,112910.0,112900.0,0.1146905]
[1758558255702,0.7995984,112910.0,112900.0,0.3095532]
[1758558255902,0.36763933,112910.0,112900.0,0.29183841]
[1758558256219,0.7995984,112910.0,112900.0,0.29183841]
[1758558256653,0.7985984,112910.0,112900.0,0.29083841]
[1758558257018,0.7985984,112910.0,112900.0,0.29883841]
[1758558257208,0.02663933,112910.0,112900.0,0.32099031]
[1758558257412,0.02663933,112910.0,112900.0,0.60235031]
[1758558257626,0.34,112920.0,112910.0,0.20727712]
[1758558257848,0.36662498,112920.0,112910.0,0.32184679]
[1758558258048,0.02662498,112920.0,112910.0,0.32184679]
[1758558258272,0.02662498,112920.0,112910.0,0.60320679]
[1758558258504,0.02662498,112920.0,112910.0,0.69896679]
[1758558258706,0.02662498,112920.0,112910.0,0.32184679]
[1758558258907,0.36662498,112920.0,112910.0,0.69892679]
[1758558259126,0.36662498,112920.0,112910.0,0.32884679]
[1758558259540,0.36662498,112920.0,112910.0,0.61012679]
[1758558259754,0.02662498,112920.0,112910.0,0.61012679]
[1758558259960,0.45516653,112940.0,112930.0,0.20725275]
[1758558260160,0.79516653,112940.0,112930.0,0.29465242]
[1758558260387,0.82178822,112940.0,112930.0,0.32182242]
[1758558261112,0.48178822,112940.0,112930.0,0.32182242]
[1758558261824,0.48178822,112940.0,112930.0,0.60802242]
[1758558262010,0.82178822,112940.0,112930.0,0.60802242]
[1758558262817,0.82178822,112940.0,112930.0,0.32682242]
[1758558263015,0.82178822,112940.0,112930.0,0.14972157]
[1758558263280,0.82178822,112940.0,112930.0,0.62468116]
[1758558263500,0.82178822,112940.0,112930.0,0.60798242]
[1758558263853,0.82178822,112940.0,112930.0,0.32682242]
[1758558264277,0.82178822,112940.0,112930.0,0.60790242]
[1758558265222,0.38982915,112940.0,112930.0,0.60786242]
[1758558267948,0.38982915,112940.0,112930.0,0.60782242]
[1758558268708,0.38982915,112940.0,112930.0,0.32682242]
[1758558268911,0.38982915,112940.0,112930.0,0.70358242]
[1758558269113,0.04982915,112940.0,112930.0,0.70358242]
[1758558269314,0.281,112960.0,112950.0,0.0301519]
[1758558269492,0.78021329,112960.0,112950.0,0.41188615]
[1758558269706,0.78021329,112960.0,112950.0,0.42605157]
[1758558269908,0.46683017,112960.0,112950.0,0.42605157]
[1758558270289,0.80683017,112960.0,112950.0,0.42605157]
[1758558270531,0.8092992,112960.0,112950.0,0.42605157]
[1758558270928,0.41395794,112960.0,112950.0,0.32216106]
[1758558271079,0.84591701,112960.0,112950.0,0.60308106]
[1758558271567,0.84891701,112960.0,112950.0,0.60308106]
[1758558271938,0.84066279,112960.0,112950.0,0.60304106]
[1758558272230,0.84591185,112960.0,112950.0,0.60304106]
[1758558272866,0.41395278,112960.0,112950.0,0.60304106]
[1758558273017,0.84591185,112960.0,112950.0,0.60304106]
[1758558273441,0.84591185,112960.0,112950.0,0.32216106]
[1758558273703,0.84391185,112960.0,112950.0,0.60308106]
[1758558274005,0.84391185,112960.0,112950.0,0.60404106]
[1758558274541,0.84391185,112960.0,112950.0,0.61004106]
[1758558274947,0.83566279,112960.0,112950.0,0.61204106]
[1758558275873,0.84391167,112960.0,112950.0,0.61204106]
[1758558276211,1.01471661,112960.0,112950.0,0.43485157]
[1758558276567,1.01471661,112960.0,112950.0,0.43173157]
[1758558277370,0.83566279,112960.0,112950.0,0.61192106]
[1758558277972,0.83566279,112960.0,112950.0,0.33116106]
[1758558278174,0.83766279,112960.0,112950.0,0.15409157]
[1758558278430,1.01471661,112960.0,112950.0,0.43173157]
[1758558278623,0.84591858,112960.0,112950.0,0.43173157]
[1758558278822,1.0229724,112960.0,112950.0,0.40726157]
[1758558279195,0.61766341,112960.0,112950.0,0.40522157]
[1758558279608,0.60940754,112960.0,112950.0,0.40522157]
[1758558279812,0.61766469,112960.0,112950.0,0.40522157]
[1758558280307,0.6238578,112960.0,112950.0,0.12442157]
[1758558280465,0.6238578,112960.0,112950.0,0.40522157]
[1758558281774,0.6002778,112960.0,112950.0,0.12442157]
[1758558281978,0.6238578,112960.0,112950.0,0.40518157]
[1758558282122,0.6238578,112960.0,112950.0,0.12442157]
[1758558282330,1.33657687,112960.0,112950.0,0.009]
[1758558282735,1.353099,112960.0,112950.0,0.009]
[1758558283329,1.35310458,112960.0,112950.0,0.009]
[1758558283725,0.17708475,112950.0,112940.0,0.28072]
[1758558283930,0.22019059,112950.0,112940.0,0.36598967]
[1758558284372,0.24681096,112950.0,112940.0,0.36598967]
[1758558284799,0.51710085,112930.0,112920.0,0.0301519]
[1758558285004,0.52736358,112930.0,112920.0,0.42269157]
[1758558285206,0.52736358,112930.0,112920.0,0.09042967]
[1758558285346,0.53043358,112930.0,112920.0,0.36806967]
[1758558285545,0.52736358,112930.0,112920.0,0.39257967]
[1758558285822,0.34826273,112930.0,112920.0,0.39565967]
[1758558286045,0.7802218,112930.0,112920.0,0.42581157]
[1758558286220,0.8068522,112930.0,112920.0,0.60292811]
[1758558287107,0.81305712,112930.0,112920.0,0.60292811]
[1758558287251,0.38109805,112930.0,112920.0,0.61692811]
[1758558287458,0.81305712,112930.0,112920.0,0.60292811]
[1758558287665,0.81305712,112930.0,112920.0,0.60792811]
[1758558287859,0.81305712,112930.0,112920.0,0.61892811]
[1758558288132,0.81305712,112930.0,112920.0,0.43681157]
[1758558288647,0.81305712,112930.0,112920.0,0.44081157]
[1758558288858,0.99015797,112930.0,112920.0,0.44081157]
[1758558289063,0.99215797,112930.0,112920.0,0.44081157]
[1758558289272,0.81305712,112930.0,112920.0,0.44081157]
[1758558289481,0.99015797,112930.0,112920.0,0.44081157]
[1758558289860,0.99015797,112930.0,112920.0,0.43773157]
[1758558289861,0.81505712,112930.0,112920.0,0.43773157]
[1758558290537,0.81505712,112930.0,112920.0,0.44085157]
[1758558291075,0.81505712,112930.0,112920.0,0.43773157]
[1758558291302,0.99215797,112930.0,112920.0,0.43773157]
[1758558291504,0.5601989,112930.0,112920.0,0.43773157]
[1758558292271,0.38309805,112930.0,112920.0,0.43773157]
[1758558292798,0.81505712,112930.0,112920.0,0.43773157]
[1758558292996,0.5632689,112930.0,112920.0,0.41322157]
[1758558293170,0.5868489,112930.0,112920.0,0.41322157]
[1758558293365,0.40974805,112930.0,112920.0,0.41322157]
[1758558293570,0.38616805,112930.0,112920.0,0.41322157]
[1758558293849,0.5601989,112930.0,112920.0,0.15697157]
[1758558294026,0.5601989,112930.0,112920.0,0.63277773]
[1758558294027,0.38109805,112930.0,112920.0,0.63277773]
[1758558294267,0.81305712,112930.0,112920.0,0.61796811]
[1758558294853,0.38109805,112930.0,112920.0,0.61796811]
[1758558295039,0.81305712,112930.0,112920.0,0.61796811]
[1758558295546,0.8068522,112930.0,112920.0,0.61796811]
[1758558296148,0.4668522,112930.0,112920.0,0.61796811]
[1758558296350,0.00826962,112930.0,112920.0,0.61796811]
[1758558297292,0.45858143,112940.0,112930.0,0.20725275]
[1758558297512,0.47308041,112940.0,112930.0,0.29466242]
[1758558297703,0.47308041,112940.0,112930.0,0.32037242]
[1758558298174,0.46686656,112940.0,112930.0,0.32037242]
[1758558298309,0.46686656,112940.0,112930.0,0.32737242]
[1758558298514,0.46686656,112940.0,112930.0,0.32937242]
[1758558299179,0.46686656,112940.0,112930.0,0.15227157]
[1758558299367,0.64590173,112940.0,112930.0,0.43303157]
[1758558299655,0.64395173,112940.0,112930.0,0.43303157]
[1758558299836,0.64590173,112940.0,112930.0,0.43303157]
[1758558300352,0.64899173,112940.0,112930.0,0.43006157]
[1758558301136,0.03490749,112940.0,112930.0,0.32937242]
[1758558301349,0.4421942,112940.0,112930.0,0.61013242]
[1758558301698,0.1904103,112940.0,112930.0,0.42796157]
[1758558301953,0.1904103,112940.0,112930.0,0.40522157]
[1758558302146,0.2142503,112940.0,112930.0,0.40522157]
[1758558302280,0.20596517,112940.0,112930.0,0.40522157]
[1758558302480,0.18212517,112940.0,112930.0,0.40522157]
[1758558303098,0.18212517,112940.0,112930.0,0.42796157]
[1758558303549,0.18212517,112940.0,112930.0,0.43010157]
[1758558303952,0.34504,112940.0,112930.0,0.43010157]
[1758558304162,0.3716608,112940.0,112930.0,0.43010157]
[1758558304367,0.54874597,112940.0,112930.0,0.14930157]
[1758558304566,0.54874597,112940.0,112930.0,0.43006157]
[1758558304940,0.3716608,112940.0,112930.0,0.43006157]
[1758558305143,0.3685708,112940.0,112930.0,0.43006157]
[1758558305670,0.3666208,112940.0,112930.0,0.61013242]
[1758558305830,0.79857987,112940.0,112930.0,0.61013242]
[1758558306032,0.79857987,112940.0,112930.0,0.43303157]
[1758558307026,0.79857987,112940.0,112930.0,0.61013242]
[1758558308172,0.79857987,112940.0,112930.0,0.43303157]
[1758558308382,0.79857987,112940.0,112930.0,0.61013242]
[1758558309317,0.34,112940.0,112930.0,0.61013242]
[1758558309521,0.02661838,112950.0,112940.0,0.20723707]
[1758558309704,0.02661838,112950.0,112940.0,0.57350674]
[1758558309884,0.36661838,112950.0,112940.0,0.60135674]
[1758558310263,0.34,112950.0,112940.0,0.60135674]
[1758558310967,0.34,112950.0,112940.0,0.60635674]
[1758558312905,0.66354671,112950.0,112940.0,0.70219674]
[1758558313656,0.66354671,112950.0,112940.0,0.42935157]
[1758558313868,0.66354671,112950.0,112940.0,0.14827157]
[1758558314082,0.66549671,112950.0,112940.0,0.42931157]
[1758558314292,0.66549671,112950.0,112940.0,0.52503157]
[1758558315026,0.34195,112950.0,112940.0,0.52503157]
[1758558315769,0.34,112950.0,112940.0,0.14827157]
[1758558315995,0.34,112950.0,112940.0,0.42931157]
[1758558316194,0.34,112950.0,112940.0,0.52503157]
[1758558316416,0.66354671,112950.0,112940.0,0.52503157]
[1758558317660,0.32354671,112950.0,112940.0,0.52503157]
[1758558317994,0.35372344,112960.0,112950.0,0.0301519]
[1758558318334,0.53289726,112960.0,112950.0,0.13153931]
[1758558318743,0.55631726,112960.0,112950.0,0.11542157]
[1758558318944,0.55631726,112960.0,112950.0,0.39650157]
[1758558319342,0.55631726,112960.0,112950.0,0.39646157]
[1758558319511,0.89631726,112960.0,112950.0,0.39646157]
[1758558319687,0.89631726,112960.0,112950.0,0.11542157]
[1758558320011,0.89631726,112960.0,112950.0,0.38226157]
[1758558320600,0.89631726,112960.0,112950.0,0.11542157]
[1758558320834,0.89731726,112960.0,112950.0,0.39642157]
[1758558321804,0.89631726,112960.0,112950.0,0.39642157]
[1758558322004,0.89631726,112960.0,112950.0,0.39730157]
[1758558322235,0.89631726,112960.0,112950.0,0.40130157]
[1758558322577,0.39571673,112960.0,112950.0,0.09222967]
[1758558322786,0.57277055,112960.0,112950.0,0.24638967]
[1758558322984,0.57277055,112960.0,112950.0,0.09026967]
[1758558323190,0.89631726,112960.0,112950.0,0.09026967]
[1758558323388,0.89631726,112960.0,112950.0,0.24822967]
[1758558323606,0.57277055,112960.0,112950.0,0.37154967]
[1758558324459,0.89631726,112960.0,112950.0,0.37154967]
[1758558325651,0.93265449,112960.0,112950.0,0.37154967]
[1758558326913,0.93265449,112960.0,112950.0,0.37162967]
[1758558328097,0.93265449,112960.0,112950.0,0.09026967]
[1758558328318,0.60910778,112960.0,112950.0,0.24830967]
[1758558329008,0.60910778,112960.0,112950.0,0.37154967]
[1758558330992,0.57277055,112960.0,112950.0,0.37154967]
[1758558331611,0.57277055,112960.0,112950.0,0.09026967]
[1758558331814,0.57277055,112960.0,112950.0,0.24738967]
[1758558333095,0.57277055,112960.0,112950.0,0.37134967]
[1758558335002,0.57277055,112960.0,112950.0,0.37130967]
[1758558338065,0.54935055,112960.0,112950.0,0.37130967]
[1758558338442,0.54935055,112960.0,112950.0,0.09026967]
[1758558338643,0.54935055,112960.0,112950.0,0.46678967]
[1758558338901,0.57271055,112960.0,112950.0,0.46678967]
[1758558339425,0.39565673,112960.0,112950.0,0.46678967]
[1758558339670,0.57271055,112960.0,112950.0,0.46678967]
[1758558340511,0.39565673,112960.0,112950.0,0.46678967]
[1758558340712,0.54935055,112960.0,112950.0,0.49193967]
[1758558342337,0.54935055,112960.0,112950.0,0.46874967]
[1758558343323,0.54414055,112960.0,112950.0,0.47176967]
[1758558343477,0.36904673,112960.0,112950.0,0.49193967]
[1758558343676,0.54610055,112960.0,112950.0,0.49193967]
[1758558343912,0.54610055,112960.0,112950.0,0.11541967]
[1758558344091,0.54914055,112960.0,112950.0,0.49189967]
[1758558344684,0.35415508,112960.0,112950.0,0.49189967]
[1758558345076,0.2149365,112960.0,112950.0,0.49189967]
[1758558345276,0.2168965,112960.0,112950.0,0.49189967]
[1758558345484,0.2168965,112960.0,112950.0,0.11541967]
[1758558345687,0.2168965,112960.0,112950.0,0.36817967]
[1758558346303,0.2168965,112960.0,112950.0,0.11541967]
[1758558346524,0.2168965,112960.0,112950.0,0.49189967]
[1758558347159,0.40459118,112960.0,112950.0,0.49189967]
[1758558348010,0.40263118,112960.0,112950.0,0.49491967]
[1758558348566,0.20343932,112970.0,112950.0,0.49491967]
[1758558348769,0.20343932,112970.0,112950.0,0.4950605]
[1758558348971,0.026617,112960.0,112950.0,0.4950605]
[1758558349371,0.17703932,112970.0,112950.0,0.4950605]
[1758558349577,0.23888931,112970.0,112950.0,0.4950605]
[1758558350244,0.20365631,112970.0,112950.0,0.4940605]
[1758558350447,0.20465631,112970.0,112950.0,0.4668705]
[1758558350675,0.54465631,112970.0,112960.0,0.02319]
[1758558350851,0.34,112960.0,112950.0,0.4881005]
[1758558351053,0.34,112960.0,112950.0,0.4900605]
[1758558351515,0.001,112970.0,112960.0,0.20720572]
[1758558351728,0.001,112970.0,112960.0,0.32064539]
[1758558351940,0.02661132,113000.0,112980.0,0.0301519]
[1758558352141,0.34,113000.0,112990.0,0.46242967]
[1758558352326,0.28369864,113010.0,112990.0,0.48959967]
[1758558352512,0.29199342,113010.0,112990.0,0.48959967]
[1758558352667,0.34,113000.0,112990.0,0.48959967]
[1758558353016,0.001,113000.0,112990.0,0.48959967]
[1758558353349,0.001,113000.0,112990.0,0.4897405]
[1758558353559,0.28369864,113010.0,112990.0,0.4897405]
[1758558353737,0.62369864,113010.0,113000.0,0.28132]
[1758558353887,0.55439233,113010.0,113000.0,0.28032]
[1758558354545,0.55439233,113010.0,113000.0,0.28132]
[1758558355210,0.55739233,113010.0,113000.0,0.28132]
[1758558355541,0.55939233,113010.0,113000.0,0.28132]
[1758558355952,0.55739233,113010.0,113000.0,0.28132]
[1758558356346,0.17699115,113000.0,112990.0,0.1106205]
[1758558356540,0.17699115,113000.0,112990.0,0.4876205]
[1758558356764,0.17699115,113000.0,112990.0,0.4895805]
[1758558357385,0.17699115,113000.0,112990.0,0.3937005]
[1758558357625,0.17699115,113000.0,112990.0,0.4894205]
[1758558357856,0.17699115,113000.0,112990.0,0.1125805]
[1758558358053,0.17699115,113000.0,112990.0,0.4052445]
[1758558358351,0.17699115,113000.0,112990.0,0.3936205]
[1758558358545,0.17699115,113000.0,112990.0,0.4893005]
[1758558358895,0.17699115,113000.0,112990.0,0.1125805]
[1758558359114,0.17699115,113000.0,112990.0,0.4893005]
[1758558359304,0.17699115,113000.0,112990.0,0.1125805]
[1758558359506,0.17699115,113000.0,112990.0,0.4892605]
[1758558360136,0.55243233,113010.0,112990.0,0.4892605]
[1758558360479,0.58816843,113010.0,112990.0,0.4892605]
[1758558360676,0.17699115,113000.0,112990.0,0.1125805]
[1758558360834,0.17699115,113000.0,112990.0,0.4891405]
[1758558361030,0.58816843,113010.0,112990.0,0.4891405]
[1758558361031,0.06234403,113010.0,113000.0,0.0301519]
[1758558361235,0.0357361,113010.0,113000.0,0.15921484]
[1758558361511,0.54356501,113020.0,113000.0,0.15921484]
[1758558361715,0.003,113010.0,113000.0,0.04656517]
[1758558361918,0.36660479,113020.0,113000.0,0.32752517]
[1758558362165,0.36660479,113020.0,113000.0,0.3130919]
[1758558362359,0.002,113010.0,113000.0,0.3130919]
[1758558362561,0.002,113010.0,113000.0,0.0321319]
[1758558362783,0.34,113020.0,113000.0,0.4361119]
[1758558362995,0.34,113020.0,113000.0,0.4087319]
[1758558363196,0.34,113020.0,113010.0,0.02738]
[1758558363586,0.37600361,113020.0,113010.0,0.02738]
[1758558363742,0.03600361,113020.0,113010.0,0.0595119]
[1758558363947,0.54394742,113030.0,113010.0,0.0595119]
[1758558364146,0.36700311,113030.0,113020.0,0.3051]
[1758558364348,0.36700311,113030.0,113020.0,0.3102]
[1758558364536,0.02700311,113030.0,113020.0,0.39546967]
[1758558364740,0.0004,113030.0,113020.0,0.39546967]
[1758558365015,0.3404,113030.0,113020.0,0.49106967]
[1758558365186,0.36700045,113030.0,113020.0,0.49106967]
[1758558366453,0.57966754,113030.0,113020.0,0.49106967]
[1758558366780,0.57966754,113030.0,113020.0,0.11462967]
[1758558366990,0.57966754,113030.0,113020.0,0.37050967]
[1758558367678,0.40272337,113030.0,113020.0,0.11462967]
[1758558367882,0.40272337,113030.0,113020.0,0.13232565]
[1758558368119,0.57966754,113030.0,113020.0,0.41296565]
[1758558368321,0.57966754,113030.0,113020.0,0.11462967]
[1758558368528,0.57966754,113030.0,113020.0,0.49094967]
[1758558369595,0.40272337,113030.0,113020.0,0.49094967]
[1758558370207,0.40272337,113030.0,113020.0,0.52110157]
[1758558370768,0.06272337,113030.0,113020.0,0.52110157]
[1758558370933,0.03612292,113030.0,113020.0,0.52110157]
[1758558371338,0.03612292,113030.0,113020.0,0.52810157]
[1758558371918,0.03612292,113030.0,113020.0,0.7080614]
[1758558372670,0.03612292,113030.0,113020.0,0.73465555]
[1758558373285,0.0004,113030.0,113020.0,0.73465555]
[1758558373944,0.0004,113030.0,113020.0,1.02165555]
[1758558374143,0.0004,113030.0,113020.0,0.63893555]
[1758558374347,0.0004,113030.0,113020.0,1.11733555]
[1758558374546,0.0004,113030.0,113020.0,1.11033555]
[1758558374750,0.0004,113030.0,113020.0,1.10733555]
[1758558374948,0.0004,113030.0,113020.0,1.17350277]
[1758558375221,0.0004,113030.0,113020.0,1.18942277]
[1758558375785,0.0004,113030.0,113020.0,0.43050277]
[1758558375986,0.0004,113030.0,113020.0,0.36433555]
[1758558376197,0.0004,113030.0,113020.0,1.12325555]
[1758558376761,0.0004,113030.0,113020.0,1.11225555]
[1758558377140,0.0004,113030.0,113020.0,1.12325555]
[1758558377792,0.0004,113030.0,113020.0,0.36433555]
[1758558378003,0.0004,113030.0,113020.0,1.12321555]
[1758558378586,0.0004,113030.0,113020.0,1.17321555]
[1758558379017,0.0004,113030.0,113020.0,1.22321555]
[1758558379265,0.0004,113030.0,113020.0,0.46433555]
[1758558379467,0.0004,113030.0,113020.0,0.28737572]
[1758558379673,0.0004,113030.0,113020.0,0.47265572]
[1758558379884,0.0004,113030.0,113020.0,0.23737572]
[1758558380090,0.0004,113030.0,113020.0,0.61829572]
[1758558380300,0.0004,113030.0,113020.0,0.18737572]
[1758558380506,0.0004,113030.0,113020.0,0.47265572]
[1758558380708,0.0004,113030.0,113020.0,0.18737572]
[1758558380845,0.3404,113030.0,113020.0,0.16311572]
[1758558381051,0.3404,113030.0,113020.0,0.54117157]
[1758558381248,0.3404,113030.0,113020.0,0.41537967]
[1758558381520,0.3404,113030.0,113020.0,0.54113157]
[1758558381720,0.3404,113030.0,113020.0,0.51097967]
[1758558382079,0.3404,113030.0,113020.0,0.54113157]
[1758558382999,0.3404,113030.0,113020.0,0.51748157]
[1758558383188,0.34238,113030.0,113020.0,0.51436157]
[1758558383381,0.34238,113030.0,113020.0,0.15705157]
[1758558383595,0.0004,113030.0,113020.0,0.48768157]
[1758558383793,0.0004,113030.0,113020.0,0.50033157]
[1758558384128,0.00238,113030.0,113020.0,0.50439157]
[1758558384350,0.0004,113030.0,113020.0,0.50233157]
[1758558384509,0.0004,113030.0,113020.0,0.50533157]
[1758558385795,0.00865448,113030.0,113020.0,0.50533157]
[1758558387368,0.0148504,113030.0,113020.0,0.50533157]
[1758558387594,0.01485714,113030.0,113020.0,0.50533157]
[1758558388881,0.19378131,113030.0,113020.0,0.53199157]
[1758558389306,0.18552009,113030.0,113020.0,0.53199157]
[1758558389492,0.00659592,113030.0,113020.0,0.53512157]
[1758558390039,0.45539592,113030.0,113020.0,0.53512157]
[1758558390249,0.79539592,113030.0,113020.0,0.15436157]
[1758558390463,0.79539592,113030.0,113020.0,0.53480157]
[1758558391133,0.79737592,113030.0,113020.0,0.53167157]
[1758558391345,0.79737592,113030.0,113020.0,0.53480157]
[1758558391549,0.79118,113030.0,113020.0,0.53480157]
[1758558391750,0.7973836,113030.0,113020.0,0.53480157]
[1758558392242,0.7954036,113030.0,113020.0,0.53480157]
[1758558392514,0.98260181,113030.0,113020.0,0.12542157]
[1758558392728,0.98260181,113030.0,113020.0,0.50570157]
[1758558392729,0.98727181,113030.0,113020.0,0.50570157]
[1758558392936,0.98727181,113030.0,113020.0,0.41002157]
[1758558393151,0.98727181,113030.0,113020.0,0.50566157]
[1758558393521,0.98260181,113030.0,113020.0,0.50566157]
[1758558393886,0.98260181,113030.0,113020.0,0.49866157]
[1758558394187,0.98260181,113030.0,113020.0,0.49966157]
[1758558394637,0.80565764,113030.0,113020.0,0.50378157]
[1758558394793,0.98260181,113030.0,113020.0,0.50378157]
[1758558394996,0.80565764,113030.0,113020.0,0.50378157]
[1758558395196,0.98260181,113030.0,113020.0,0.50378157]
[1758558395517,0.98260181,113030.0,113020.0,0.50166157]
[1758558395722,0.98727762,113030.0,113020.0,0.50166157]
[1758558395921,0.98727762,113030.0,113020.0,0.18690967]
[1758558396127,1.01573622,113030.0,113020.0,0.09126967]
[1758558396354,1.01573622,113030.0,113020.0,0.33266967]
[1758558396743,0.58941953,113030.0,113020.0,0.33266967]
[1758558396969,0.56096093,113030.0,113020.0,0.33266967]
[1758558397759,0.56096093,113030.0,113020.0,0.37558967]
[1758558397981,0.56096093,113030.0,113020.0,0.47122967]
[1758558400474,0.56096093,113030.0,113020.0,0.37546967]
[1758558400981,0.56096093,113030.0,113020.0,0.09126967]
[1758558401183,0.58941953,113030.0,113020.0,0.37542967]
[1758558401365,0.56693622,113030.0,113020.0,0.37542967]
[1758558401969,0.58977762,113030.0,113020.0,0.37542967]
[1758558402147,0.56131902,113030.0,113020.0,0.37542967]
[1758558402551,0.55664902,113030.0,113020.0,0.37754967]
[1758558402764,0.54639498,113030.0,113020.0,0.40354967]
[1758558403217,0.36945081,113030.0,113020.0,0.43370157]
[1758558403433,0.3632414,113030.0,113020.0,0.43370157]
[1758558403643,0.0232414,113030.0,113020.0,0.43370157]
[1758558407536,0.0232414,113030.0,113020.0,0.52926157]
[1758558407818,0.54216557,113030.0,113020.0,0.37514967]
[1758558408024,0.54216557,113030.0,113020.0,0.47290967]
[1758558408227,0.3632414,113030.0,113020.0,0.52906157]
[1758558410776,0.8120414,113030.0,113020.0,0.52906157]
[1758558415290,0.8120414,113030.0,113020.0,0.52870157]
[1758558415499,0.4488,113030.0,113020.0,0.52870157]
[1758558415704,0.47172571,113030.0,113020.0,0.52870157]
[1758558417514,0.81172571,113030.0,113020.0,0.52870157]
[1758558417767,0.81172571,113030.0,113020.0,0.43290157]
[1758558418059,0.99062988,113030.0,113020.0,0.40466157]
[1758558418269,0.99062988,113030.0,113020.0,0.12142157]
[1758558418473,0.99394988,113030.0,113020.0,0.12142157]
[1758558418647,0.99062988,113030.0,113020.0,0.38750157]
[1758558418846,0.81368571,113030.0,113020.0,0.38750157]
[1758558419082,0.99062988,113030.0,113020.0,0.12142157]
[1758558419290,0.99062988,113030.0,113020.0,0.38886157]
[1758558419475,0.99062988,113030.0,113020.0,0.39092157]
[1758558419677,0.99062988,113030.0,113020.0,0.38886157]
[1758558420391,0.81368571,113030.0,113020.0,0.12142157]
[1758558420592,0.81368571,113030.0,113020.0,0.50228157]
[1758558420765,0.81172571,113030.0,113020.0,0.50519157]
[1758558421205,0.81172571,113030.0,113020.0,0.48142157]
[1758558421435,0.81172571,113030.0,113020.0,0.50519157]
[1758558423479,0.81368571,113030.0,113020.0,0.38058157]
[1758558423677,0.99529988,113030.0,113020.0,0.09742157]